[Event "Portuguese-ch U14-20 2022"]
[Site "Fatima"]
[Date "2022.04.11"]
[Round "3.30"]
[White "Mourao, Martim Oliveira"]
[Black "Afonso, Joao Pedro"]
[Result "0-1"]
[ECO "B17"]
[WhiteElo "1110"]
[BlackElo "1501"]
[Annotator "NA RC"]
[PlyCount "50"]
[EventDate "2022.04.10"]
[EventType "swiss"]
[EventCountry "POR"]
[SourceTitle "playchess.com"]
[Source "ChessBase"]
[SourceQuality "1"]
[TimeControl "5400+30"]

1. e4 c6 2. d4 d5 3. Nc3 dxe4 4. Nxe4 Nd7 5. Nf3 Ngf6 6. Nxf6+ Nxf6 7. Be2 Bf5 8. c3 e6 9. Bf4 Bd6 10. Bxd6 Qxd6 11. O-O O-O 12. Re1 Rfd8 13. h3 c5 14. dxc5 Qxc5 15. Qb3 Ne4 16. Nd4 Nxf2 17. Kxf2 e5 18. Rad1 exd4 19. Kf1 d3 20. Bf3 d2 21. Re8+ Rxe8 22. Rxd2 Rad8 23. Rxd8 Rxd8 24. Qxb7 Bd3+ 25. Ke1 Qe3+ 0-1

[Event "Portuguese-ch U14-20 2022"]
[Site "Fatima"]
[Date "2022.04.11"]
[Round "3.31"]
[White "De Medeiros, Sara Soares"]
[Black "Lachever, Diogo Freire"]
[Result "1-0"]
[ECO "E98"]
[WhiteElo "1828"]
[BlackElo "1182"]
[Annotator "NA RC"]
[PlyCount "78"]
[EventDate "2022.04.10"]
[EventType "swiss"]
[EventCountry "POR"]
[SourceTitle "playchess.com"]
[Source "ChessBase"]
[SourceQuality "1"]
[TimeControl "5400+30"]

1. d4 {[%emt 0:00:18]} Nf6 {[%emt 0:00:04]} 2. c4 {[%emt 0:00:15]} g6 {[%emt 0:00:21]} 3. Nc3 {[%emt 0:00:11]} Bg7 {[%emt 0:00:26]} 4. e4 {[%emt 0:00:24]} d6 {[%emt 0:01:04]} 5. Nf3 {[%emt 0:00:12]} Nc6 {[%emt 0:00:27]} 6. Be2 {[%emt 0:00:25]} O-O {[%emt 0:00:41]} 7. O-O {[%emt 0:00:11]} e5 {[%emt 0:00:43]} 8. d5 {[%emt 0:00:05]} Ne7 {[%emt 0:00:10]} 9. Ne1 {[%emt 0:00:45]} Ne8 {[%emt 0:01:19]} 10. Be3 {[%emt 0:00:56]} f5 {[%emt 0:01:26]} 11. f3 {[%emt 0:00:19]} f4 {[%emt 0:00:41]} 12. Bf2 {[%emt 0:00:03]} Nf6 {[%emt 0:02:40]} 13. Rc1 {[%emt 0:01:00]} g5 {[%emt 0:01:15]} 14. c5 {[%emt 0:02:19]} h5 {[%emt 0:05:38]} 15. cxd6 {[%emt 0:00:25]} cxd6 {[%emt 0:00:06]} 16. Nb5 {[%emt 0:00:18]} Ne8 {[%emt 0:03:40]} 17. Nxa7 {[%emt 0:01:30]} Bd7 {[%emt 0:00:56]} 18. Qb3 {[%emt 0:02:40]} g4 {[%emt 0:04:42]} (18... Kh8 $142 19. Nd3 (19. Qxb7 Rb8 $18) 19... Qb8) 19. fxg4 {[%emt 0:06:06]} hxg4 {[%emt 0:00:36]} 20. Bb6 {[%emt 0:00:19]} Qb8 {[%emt 0:02:31]} 21. Bb5 {[%emt 0:01:18]} Bxb5 {[%emt 0:02:34]} ({Better is} 21... Nf6 $14) 22. Nxb5 {[%emt 0:00:20]} Bh6 {[%emt 0:01:21]} 23. Rc2 {[%emt 0:01:29]} Nc8 {[%emt 0:02:09]} 24. Bf2 {[%emt 0:01:59]} (24. Bc7 $18 Nxc7 25. Nxc7 (25. Rxc7 Na7 $14)) 24... Ne7 {[%emt 0:01:30]} 25. a3 {[%emt 0:03:38]} Qd8 {[%emt 0:01:35]} 26. Nc3 {[%emt 0:06:21]} Ng6 {[%emt 0:01:41]} 27. Na4 {[%emt 0:15:05]} Qg5 {[%emt 0:03:12]} 28. Nb6 {[%emt 0:00:53]} Rd8 {[%emt 0:02:08]} 29. Nc4 {[%emt 0:03:01]} Nf6 {[%emt 0:04:39]} 30. Nd2 {[%emt 0:08:16]} Rd7 $17 {[%emt 0:04:20]} 31. h3 {[%emt 0:24:10]} f3 {[%emt 0:14:34]} 32. hxg4 {[%emt 0:01:48]} fxg2 {[%emt 0:00:25]} 33. Nxg2 {[%emt 0:01:31]} Nxg4 {[%emt 0:06:28]} 34. Qh3 {[%emt 0:07:28]} Rdf7 {[%emt 0:05:02]} 35. Nb3 {[%emt 0:02:08]} Rf3 {[%emt 0:00:43]} 36. Qh1 {[%emt 0:00:50]} Rxb3 {[%emt 0:00:21]} 37. Rc3 {[%emt 0:01:48]} Rxc3 {[%emt 0:02:13]} 38. bxc3 {[%emt 0:00:02]} Nxf2 {[%emt 0:00:56]} 39. Rxf2 {[%emt 0:00:21]} Qc1+ {[%emt 0:00:44]} 1-0

[Event "Portuguese-ch U14-20 2022"]
[Site "Fatima"]
[Date "2022.04.12"]
[Round "4.1"]
[White "Martins, Bruno Andre Leite"]
[Black "Machado, Tomas Dias"]
[Result "1-0"]
[ECO "A45"]
[WhiteElo "2323"]
[BlackElo "2030"]
[Annotator "RC"]
[PlyCount "77"]
[EventDate "2022.04.10"]
[EventType "swiss"]
[EventCountry "POR"]
[SourceTitle "playchess.com"]
[Source "ChessBase"]
[SourceQuality "1"]
[TimeControl "5400+30"]

1. d4 {[%emt 0:06:15]} Nf6 {[%emt 0:00:12]} 2. Bf4 {[%emt 0:00:25]} d5 {[%emt 0:00:06]} 3. e3 {[%emt 0:00:07]} e6 {[%emt 0:00:48]} 4. Nd2 {[%emt 0:00:21]} Be7 {[%emt 0:01:27]} 5. Bd3 {[%emt 0:01:45]} c5 {[%emt 0:02:37]} 6. c3 {[%emt 0:00:33]} Nc6 {[%emt 0:01:54]} 7. Ngf3 {[%emt 0:05:10]} O-O {[%emt 0:04:55]} 8. Qe2 {[%emt 0:07:53]} c4 {[%emt 0:07:01]} 9. Bc2 {[%emt 0:00:48]} b5 {[%emt 0:00:22]} 10. a3 {[%emt 0:00:52]} a5 {[%emt 0:01:48]} 11. e4 {[%emt 0:01:24]} dxe4 {[%emt 0:08:52]} 12. Nxe4 {[%emt 0:00:49]} Nd5 {[%emt 0:00:00]} 13. Ned2 Nf6 {[%emt 0:06:12]} 14. Ne4 {[%emt 0:01:00]} Nd5 {[%emt 0:00:30]} 15. Bd2 {[%emt 0:07:38]} f6 {[%emt 0:08:35]} 16. O-O {[%emt 0:06:18]} Qc7 {[%emt 0:13:30]} 17. Ng3 {[%emt 0:05:22]} Bd7 {[%emt 0:04:30]} 18. a4 {[%emt 0:03:16]} Rfb8 {[%emt 0:15:12]} 19. Rfb1 {[%emt 0:16:10]} Na7 {[%emt 0:08:22]} 20. Qe4 {[%emt 0:02:23]} g6 {[%emt 0:02:55]} 21. axb5 {[%emt 0:03:02]} Nxb5 {[%emt 0:00:58]} 22. h4 {[%emt 0:02:17]} Bd6 {[%emt 0:01:40]} 23. Nf1 {[%emt 0:03:22]} f5 {[%emt 0:01:52]} 24. Qe2 {[%emt 0:00:36]} Nf4 {[%emt 0:03:35]} 25. Bxf4 {[%emt 0:00:22]} Bxf4 {[%emt 0:00:06]} 26. Ne5 {[%emt 0:06:02]} Bxe5 {[%emt 0:02:05]} 27. dxe5 {[%emt 0:00:11]} Qc5 {[%emt 0:01:35]} 28. Nd2 {[%emt 0:00:21]} Rc8 {[%emt 0:01:08]} 29. Ra4 {[%emt 0:03:25]} Nxc3 {[%emt 0:00:51]} 30. bxc3 {[%emt 0:00:08]} Bxa4 {[%emt 0:00:04]} 31. Bxa4 {[%emt 0:00:07]} Rc7 {[%emt 0:00:54]} 32. Nf3 {[%emt 0:04:43]} Qa3 {[%emt 0:00:45]} 33. Qc2 {[%emt 0:00:53]} h6 {[%emt 0:00:48]} 34. Nd4 {[%emt 0:00:14]} Re7 {[%emt 0:00:44]} 35. Rb5 {[%emt 0:03:42]} Qa1+ {[%emt 0:00:04]} 36. Kh2 {[%emt 0:03:30]} Qf1 {[%emt 0:00:34]} 37. Qd2 {[%emt 0:00:56]} g5 {[%emt 0:00:34]} 38. Bc2 {[%emt 0:01:18]} a4 {[%emt 0:00:35]} 39. Rb1 {[%emt 0:00:17]} 1-0

[Event "Portuguese-ch U14-20 2022"]
[Site "Fatima"]
[Date "2022.04.12"]
[Round "4.2"]
[White "Monteiro, Paulo Alexandre G"]
[Black "Santos, Jose Miguel Sereno"]
[Result "1/2-1/2"]
[ECO "A46"]
[WhiteElo "2032"]
[BlackElo "1843"]
[Annotator "RC"]
[PlyCount "55"]
[EventDate "2022.04.10"]
[EventType "swiss"]
[EventCountry "POR"]
[SourceTitle "playchess.com"]
[Source "ChessBase"]
[SourceQuality "1"]
[TimeControl "5400+30"]

1. d4 Nf6 2. Nf3 c5 3. g3 cxd4 4. Nxd4 d5 5. Bg2 Nc6 6. O-O e6 7. c4 Bc5 8. Nxc6 bxc6 9. Qc2 Qe7 10. Nc3 O-O 11. b3 Ba6 12. Rd1 Rfd8 13. Na4 dxc4 14. Rxd8+ Rxd8 15. Nxc5 Qxc5 16. Be3 Qb5 17. bxc4 Qxc4 18. Qxc4 Bxc4 19. Bxa7 Ra8 20. Bd4 Rxa2 21. Rxa2 Bxa2 22. Bxc6 Nd5 23. f3 Ne7 24. Bb5 f5 25. Kf2 Kf7 26. h4 Bd5 27. Bd3 h6 {[%emt 1:09:03]} 28. Bb2 {[%emt 1:33:03]} 1/2-1/2

[Event "Portuguese-ch U14-20 2022"]
[Site "Fatima"]
[Date "2022.04.12"]
[Round "4.3"]
[White "Gage, Daniel"]
[Black "Ribeiro, Orlando"]
[Result "0-1"]
[ECO "C41"]
[WhiteElo "1752"]
[BlackElo "1945"]
[Annotator "RC"]
[PlyCount "96"]
[EventDate "2022.04.10"]
[EventType "swiss"]
[EventCountry "POR"]
[SourceTitle "playchess.com"]
[Source "ChessBase"]
[SourceQuality "1"]
[TimeControl "5400+30"]

1. e4 {[%emt 0:06:39]} d6 {[%emt 0:08:17]} 2. d4 {[%emt 0:00:03]} Nf6 {[%emt 0:00:09]} 3. Nc3 {[%emt 0:00:06]} e5 {[%emt 0:00:06]} 4. Nf3 {[%emt 0:05:40]} Nbd7 {[%emt 0:00:11]} 5. Bc4 {[%emt 0:00:46]} Be7 {[%emt 0:00:39]} 6. Bxf7+ {[%emt 0:15:10]} Kxf7 {[%emt 0:00:16]} 7. Ng5+ {[%emt 0:00:03]} Kg6 {[%emt 0:01:59]} 8. Qf3 {[%emt 0:29:38]} Nf8 {[%emt 0:05:12]} 9. h4 {[%emt 0:00:59]} h5 {[%emt 0:11:00]} 10. Qg3 {[%emt 0:07:24]} Bg4 {[%emt 0:09:17]} 11. f3 {[%emt 0:04:00]} Qd7 {[%emt 0:02:40]} 12. dxe5 {[%emt 0:02:22]} dxe5 {[%emt 0:00:44]} 13. fxg4 {[%emt 0:00:22]} Qxg4 {[%emt 0:00:48]} 14. Qxe5 {[%emt 0:00:15]} Bd6 {[%emt 0:01:17]} 15. Qf5+ {[%emt 0:02:36]} Qxf5 {[%emt 0:01:41]} 16. exf5+ {[%emt 0:00:02]} Kxf5 {[%emt 0:00:10]} 17. O-O+ {[%emt 0:01:56]} Kg6 {[%emt 0:00:11]} 18. Nce4 {[%emt 0:00:38]} Be5 {[%emt 0:03:58]} 19. c3 {[%emt 0:01:42]} Re8 {[%emt 0:11:36]} 20. Bf4 {[%emt 0:02:08]} N8d7 {[%emt 0:06:36]} 21. Bxe5 Nxe5 {[%emt 0:05:11]} 22. Nxf6 {[%emt 0:03:40]} gxf6 {[%emt 0:00:01]} 23. Ne4 {[%emt 0:00:21]} Re6 {[%emt 0:01:29]} 24. Rad1 {[%emt 0:01:06]} Nc4 {[%emt 0:01:45]} 25. Nc5 {[%emt 0:02:54]} Rc6 {[%emt 0:01:54]} 26. Nxb7 {[%emt 0:02:38]} Ne3 {[%emt 0:00:36]} 27. Rd3 {[%emt 0:01:48]} Nxf1 {[%emt 0:00:07]} 28. Kxf1 {[%emt 0:00:02]} Rb8 {[%emt 0:00:37]} 29. Na5 {[%emt 0:00:02]} Ra6 {[%emt 0:00:15]} 30. b4 {[%emt 0:00:03]} Rd6 {[%emt 0:00:33]} 31. Rg3+ {[%emt 0:00:44]} Kf7 {[%emt 0:00:30]} 32. Ke2 {[%emt 0:00:02]} Re8+ {[%emt 0:00:09]} 33. Re3 {[%emt 0:00:43]} Rxe3+ {[%emt 0:00:39]} 34. Kxe3 {[%emt 0:00:02]} Ke6 {[%emt 0:00:10]} 35. Ke2 {[%emt 0:00:26]} Kf5 {[%emt 0:00:37]} 36. Nb3 Ra6 {[%emt 0:00:21]} 37. Nc1 {[%emt 0:01:06]} Kg4 {[%emt 0:00:11]} 38. Kf2 {[%emt 0:00:57]} Kxh4 {[%emt 0:00:22]} 39. b5 {[%emt 0:01:12]} Ra3 {[%emt 0:00:08]} 40. c4 {[%emt 0:00:35]} Rc3 {[%emt 0:00:18]} 41. Ne2 {[%emt 0:00:55]} Rxc4 {[%emt 0:01:15]} 42. g3+ {[%emt 0:00:02]} Kg4 {[%emt 0:00:07]} 43. Ke3 {[%emt 0:00:45]} Rc2 {[%emt 0:00:17]} 44. a4 {[%emt 0:02:03]} Rxe2+ {[%emt 0:00:20]} 45. Kxe2 {[%emt 0:00:20]} Kxg3 {[%emt 0:00:06]} 46. Kd3 {[%emt 0:00:06]} h4 {[%emt 0:00:04]} 47. a5 {[%emt 0:00:20]} h3 {[%emt 0:00:17]} 48. Kc4 {[%emt 0:00:51]} h2 {[%emt 0:00:05]} 0-1

[Event "Portuguese-ch U14-20 2022"]
[Site "Fatima"]
[Date "2022.04.12"]
[Round "4.4"]
[White "Paiva, Manuel Maria Fonseca"]
[Black "Oliveira, Beatriz Correia"]
[Result "0-1"]
[ECO "B01"]
[WhiteElo "1370"]
[BlackElo "1558"]
[Annotator "NA RC"]
[PlyCount "58"]
[EventDate "2022.04.10"]
[EventType "swiss"]
[EventCountry "POR"]
[SourceTitle "playchess.com"]
[Source "ChessBase"]
[SourceQuality "1"]
[TimeControl "5400+30"]

1. e4 {[%emt 0:00:42]} d5 {[%emt 0:00:09]} 2. exd5 {[%emt 0:00:19]} Qxd5 {[%emt 0:00:06]} 3. Nf3 {[%emt 0:00:36]} Nf6 {[%emt 0:00:29]} 4. Nc3 {[%emt 0:00:22]} Qa5 {[%emt 0:00:20]} 5. a3 {[%emt 0:00:29]} c6 {[%emt 0:00:28]} 6. Bc4 {[%emt 0:01:21]} Bf5 {[%emt 0:00:42]} 7. O-O {[%emt 0:00:51]} e6 {[%emt 0:00:49]} 8. b4 {[%emt 0:01:44]} Qc7 {[%emt 0:01:14]} 9. Bb2 {[%emt 0:03:15]} Nbd7 {[%emt 0:01:45]} 10. Ne2 {[%emt 0:02:54]} h6 {[%emt 0:06:28]} 11. Ng3 {[%emt 0:01:36]} Bh7 {[%emt 0:01:17]} 12. Re1 {[%emt 0:00:38]} Bd6 {[%emt 0:02:21]} 13. d4 {[%emt 0:02:01]} O-O {[%emt 0:02:15]} 14. Ne5 {[%emt 0:01:06]} Rfd8 {[%emt 0:04:54]} 15. Qe2 {[%emt 0:04:54]} Bxe5 {[%emt 0:02:09]} 16. dxe5 {[%emt 0:00:13]} Nd5 {[%emt 0:01:58]} 17. Nh5 {[%emt 0:11:47]} Bg6 {[%emt 0:06:19]} 18. Qg4 {[%emt 0:02:41]} N7b6 {[%emt 0:02:51]} 19. Bb3 {[%emt 0:01:12]} c5 {[%emt 0:04:18]} 20. c4 {[%emt 0:00:54]} Bxh5 {[%emt 0:00:32]} 21. Qxh5 {[%emt 0:00:32]} Nf4 {[%emt 0:00:22]} 22. Qh4 {[%emt 0:08:10]} Nd3 {[%emt 0:02:10]} 23. bxc5 {[%emt 0:00:54]} Nxe1 {[%emt 0:01:01]} 24. Rxe1 {[%emt 0:01:47]} Qxc5 {[%emt 0:02:17]} 25. Bc1 {[%emt 0:02:13]} Qd4 {[%emt 0:05:04]} 26. Qg3 {[%emt 0:00:59]} Qd3 {[%emt 0:01:14]} 27. Qg4 {[%emt 0:05:04]} Rd4 {[%emt 0:04:13]} 28. Re3 {[%emt 0:01:16]} Qxe3 {[%emt 0:02:26]} 29. fxe3 {[%emt 0:00:44]} Rxg4 {[%emt 0:00:23]} 0-1

[Event "Portuguese-ch U14-20 2022"]
[Site "Fatima"]
[Date "2022.04.12"]
[Round "4.5"]
[White "Voges, Guilherme"]
[Black "Leao, Tiago Miguel Da Silv"]
[Result "0-1"]
[ECO "A00"]
[WhiteElo "1657"]
[BlackElo "2131"]
[Annotator "TA"]
[PlyCount "70"]
[EventDate "2022.04.10"]
[EventType "swiss"]
[EventCountry "POR"]
[SourceTitle "playchess.com"]
[Source "ChessBase"]
[SourceQuality "1"]
[TimeControl "5400+30"]

{[%evp 9,69,-13,12,-26,28,26,80,96,95,76,148,93,104,95,142,131,235,225,231,227,233,233,228,238,242,231,237,239,230,147,148,48,47,22,41,41,47,34,41,44,45,0,66,66,70,60,73,29,56,29,81,45,45,-2,-8,-5,0,-29995,-29996,-29996,-29997,-29999]} 1. g3 {[%emt 0:00:01]} d5 {[%emt 0:01:25]} 2. Bg2 {[%emt 0:00:14]} Nf6 {[%emt 0:00:16]} 3. d3 {[%emt 0:00:14]} c5 {[%emt 0:00:14]} 4. Nf3 {[%emt 0:00:26]} Nc6 {[%emt 0:00:07]} 5. Bf4 {[%emt 0:00:46]} g6 {[%emt 0:04:52]} 6. Na3 {[%emt 0:05:43] [#] A00: Irregular Openings.} Qb6 $146 {[%emt 0:06:52]} (6... Bg7 $142) ({Predecessor:} 6... Bg7 7. O-O Nh5 8. Bc1 O-O 9. e4 Nf6 10. exd5 Nxd5 11. Re1 Bg4 12. c3 Qd7 {1-0 (48) Green,M (2103)-Walther,J (2223) ICCF email 2020}) 7. c4 $11 {[%emt 0:07:49] Black must now prevent Nb5.} Nh5 (7... Qxb2 $2 8. Nb5 $18) (7... a6 $11) 8. cxd5 $16 {[%emt 0:26:28] White is better.} Nxf4 {[%emt 0:10:36]} 9. gxf4 {[%emt 0:00:48]} Na5 {[%emt 0:09:13]} (9... Qxb2 $2 10. dxc6 Qxa3 11. Rb1 $16) (9... Nd4 $142) 10. Ne5 {[%emt 0:08:18]} ({White should play} 10. Qd2) 10... Qb4+ {[%emt 0:07:12]} 11. Qd2 {[%emt 0:01:11]} Bh6 {[%emt 0:03:02]} (11... Qxd2+ $142 12. Kxd2 Bh6) 12. e3 {[%emt 0:04:09]} Bf5 {[%emt 0:07:27] [#]} (12... f6 $16 {might work better.}) 13. Qxb4 $1 $18 {[%emt 0:10:15]} cxb4 {[%emt 0:00:05]} 14. Nb5 {[%emt 0:00:21] Threatens to win with Nc7+.} O-O {[%emt 0:01:26]} 15. Nd4 {[%emt 0:00:27]} Rfd8 {[%emt 0:03:18]} 16. Nxf5 {[%emt 0:00:45]} gxf5 {[%emt 0:00:19]} 17. Ke2 {[%emt 0:00:28]} Rac8 {[%emt 0:01:38]} 18. Rac1 {[%emt 0:03:21] Inhibits Rc2+.} b3 {[%emt 0:01:21]} 19. Nc4 {[%emt 0:04:20]} Nxc4 {[%emt 0:02:48]} 20. dxc4 {[%emt 0:00:12]} (20. Rxc4 $16 bxa2 21. Ra1) 20... bxa2 $14 {[%emt 0:00:14]} 21. Kd3 {[%emt 0:00:34]} Bg7 {[%emt 0:01:06]} 22. Ra1 {[%emt 0:00:19]} b5 {[%emt 0:07:39]} 23. cxb5 {[%emt 0:01:49]} Rb8 {[%emt 0:01:52]} 24. Rxa2 {[%emt 0:02:05]} Rxb5 {[%emt 0:00:22]} 25. Rxa7 {[%emt 0:02:55] Hoping for Rb1.} Rb3+ {[%emt 0:00:13]} (25... Rxb2 $11 26. Rd1 (26. Rxe7 Rc8 $17) 26... Rxf2) 26. Ke2 {[%emt 0:02:50]} Rxb2+ {[%emt 0:00:30]} 27. Kf3 {[%emt 0:01:10]} Bf6 {[%emt 0:08:26] And now ...Bh4 would win.} 28. Kg3 {[%emt 0:00:28] Against Bh4+} Kg7 {[%emt 0:01:30]} 29. Rd1 {[%emt 0:01:50][%cal Od5d6]} Kh6 {[%emt 0:02:05]} (29... e5 $11 {keeps the balance.}) 30. d6 {[%emt 0:02:02]} Rg8+ {[%emt 0:02:54]} 31. Kf3 {[%emt 0:00:14]} (31. Kh3 $1 $14 Rxf2 32. Bd5 (32. d7 {is a self mate.} Rgxg2 33. Ra6 Rg8)) 31... Bh4 $11 {[%emt 0:00:41][%csl Gh4][%cal Rb2f2]} 32. Rf1 {[%emt 0:00:10]} Rd8 {[%emt 0:02:27]} 33. dxe7 {[%emt 0:01:08][%mdl 8192] [#]} (33. d7 $11) 33... Rdd2 $1 {[%emt 0:00:35] Black mates.} 34. Ra6+ {[%emt 0:02:34]} Kh5 {[%emt 0:00:29]} 35. e4 {[%emt 0:00:20]} Rd3# {[%emt 0:00:16] Never resign too early!  Weighted Error Value: White=0.45/Black=0.25 (precise)} 0-1

[Event "Portuguese-ch U14-20 2022"]
[Site "Fatima"]
[Date "2022.04.12"]
[Round "4.6"]
[White "Cunha, Alexandre Rodrigo Vi"]
[Black "Maciel, Rafael"]
[Result "1-0"]
[ECO "C50"]
[WhiteElo "1603"]
[BlackElo "1665"]
[Annotator "NA RC"]
[PlyCount "129"]
[EventDate "2022.04.10"]
[EventType "swiss"]
[EventCountry "POR"]
[SourceTitle "playchess.com"]
[Source "ChessBase"]
[SourceQuality "1"]
[TimeControl "5400+30"]

1. e4 {[%emt 0:06:56]} e5 {[%emt 0:00:10]} 2. Nf3 {[%emt 0:00:06]} Nc6 {[%emt 0:00:08]} 3. Bc4 {[%emt 0:00:29]} Bc5 {[%emt 0:00:16]} 4. Nc3 {[%emt 0:00:09]} Nf6 {[%emt 0:01:43]} 5. d3 {[%emt 0:00:19]} h6 {[%emt 0:00:18]} 6. Be3 {[%emt 0:00:22]} Bb6 {[%emt 0:00:09]} 7. O-O {[%emt 0:01:21]} d6 {[%emt 0:00:19]} 8. d4 {[%emt 0:09:46]} Bg4 {[%emt 0:05:06]} 9. Bb5 {[%emt 0:11:40]} exd4 {[%emt 0:06:22]} 10. Bxd4 {[%emt 0:01:47]} Bxd4 {[%emt 0:00:09]} 11. Qxd4 {[%emt 0:00:31]} O-O {[%emt 0:00:12]} 12. Bxc6 {[%emt 0:00:18]} bxc6 {[%emt 0:00:06]} 13. Qd3 {[%emt 0:02:30]} Rb8 {[%emt 0:02:06]} 14. b3 {[%emt 0:01:05]} Bxf3 {[%emt 0:05:02]} 15. Qxf3 {[%emt 0:00:18]} Re8 {[%emt 0:01:19]} 16. Rfe1 {[%emt 0:00:00]} Rf8 {[%emt 0:00:00]} 17. Rf1 {[%emt 0:01:00]} Re8 {[%emt 0:01:00]} 18. Rfe1 {[%emt 0:01:05]} Qe7 {[%emt 0:04:31]} 19. h3 {[%emt 0:01:34]} Qe5 {[%emt 0:01:37]} 20. Rad1 {[%emt 0:06:41]} d5 {[%emt 0:06:37]} 21. exd5 {[%emt 0:03:18]} Qxe1+ {[%emt 0:00:11]} 22. Rxe1 {[%emt 0:00:05]} Rxe1+ {[%emt 0:00:08]} 23. Kh2 {[%emt 0:00:02]} cxd5 {[%emt 0:00:15]} 24. Nxd5 {[%emt 0:00:11]} Nxd5 {[%emt 0:00:40]} 25. Qxd5 {[%emt 0:00:06]} Rf1 {[%emt 0:00:50]} 26. Qc5 {[%emt 0:00:34]} Re8 {[%emt 0:01:46]} 27. Qxa7 {[%emt 0:05:08]} Re2 {[%emt 0:00:39]} 28. Qxc7 {[%emt 0:00:16]} Rfxf2 {[%emt 0:00:13]} 29. Qb7 {[%emt 0:00:13]} Rxc2 {[%emt 0:00:50]} 30. a4 {[%emt 0:00:05]} Ra2 {[%emt 0:02:59]} 31. Qa8+ {[%emt 0:03:55]} Kh7 {[%emt 0:00:19]} 32. a5 {[%emt 0:00:25]} Rfb2 {[%emt 0:01:24]} 33. Qe4+ {[%emt 0:00:15]} Kg8 {[%emt 0:04:02]} 34. b4 {[%emt 0:00:54]} g6 {[%emt 0:04:47]} 35. Qb7 {[%emt 0:07:30]} Rb1 {[%emt 0:01:59]} 36. a6 {[%emt 0:05:21]} Rba1 {[%emt 0:02:28]} 37. b5 {[%emt 0:00:57]} Kg7 {[%emt 0:02:43]} 38. Qc7 {[%emt 0:04:33]} Rxa6 {[%emt 0:11:29]} 39. bxa6 {[%emt 0:00:11]} Rxa6 {[%emt 0:00:06]} 40. Qe5+ {[%emt 0:00:05]} Rf6 {[%emt 0:00:23]} 41. g4 {[%emt 0:01:17]} g5 {[%emt 0:01:12]} 42. Kg3 {[%emt 0:00:10]} Kg6 {[%emt 0:00:52]} 43. h4 {[%emt 0:00:56]} gxh4+ {[%emt 0:17:29]} 44. Kxh4 {[%emt 0:00:27]} Rf1 {[%emt 0:02:04]} 45. Qe4+ {[%emt 0:01:38]} Kg7 {[%emt 0:00:49]} 46. Kh5 {[%emt 0:00:40]} Rc1 {[%emt 0:03:32]} 47. Qe5+ {[%emt 0:02:07]} Kh7 {[%emt 0:00:53]} 48. Qd5 {[%emt 0:00:08]} Kg7 {[%emt 0:01:01]} 49. Qe5+ {[%emt 0:01:04]} Kh7 {[%emt 0:00:26]} 50. Qe4+ {[%emt 0:00:10]} Kg7 {[%emt 0:00:32]} 51. Qd5 {[%emt 0:00:10]} Re1 {[%emt 0:01:19]} 52. Qd4+ {[%emt 0:00:55]} Kh7 {[%emt 0:00:19]} 53. Qd3+ {[%emt 0:00:15]} Kg8 {[%emt 0:01:47]} 54. Kxh6 {[%emt 0:00:34]} Rh1+ {[%emt 0:00:12]} 55. Kg5 {[%emt 0:00:07]} Kg7 {[%emt 0:00:24]} 56. Qd4+ {[%emt 0:03:19]} Kg8 {[%emt 0:01:39]} 57. Qd8+ {[%emt 0:00:05]} Kg7 {[%emt 0:00:44]} 58. Qf6+ {[%emt 0:00:04]} Kg8 {[%emt 0:00:21]} 59. Qf3 {[%emt 0:00:11]} Rh2 {[%emt 0:01:50]} 60. Qf4 {[%emt 0:02:16]} Rh1 {[%emt 0:00:26]} 61. Kf6 {[%emt 0:00:35]} Rg1 {[%emt 0:03:54]} 62. Qg5+ {[%emt 0:00:17]} Kf8 {[%emt 0:00:10]} 63. Qg7+ {[%emt 0:00:11]} Ke8 {[%emt 0:00:17]} 64. Qxf7+ {[%emt 0:00:27]} Kd8 {[%emt 0:00:08]} 65. Qd5+ {[%emt 0:00:43]} 1-0

[Event "Portuguese-ch U14-20 2022"]
[Site "Fatima"]
[Date "2022.04.12"]
[Round "4.7"]
[White "Quinta, Diogo Manuel Rodrigu"]
[Black "Marques, Joao Goncalo B A"]
[Result "0-1"]
[ECO "D31"]
[WhiteElo "1127"]
[BlackElo "1418"]
[Annotator "NA RC"]
[PlyCount "82"]
[EventDate "2022.04.10"]
[EventType "swiss"]
[EventCountry "POR"]
[SourceTitle "playchess.com"]
[Source "ChessBase"]
[SourceQuality "1"]
[TimeControl "5400+30"]

1. d4 {[%emt 0:00:05]} d5 {[%emt 0:02:52]} 2. c4 {[%emt 0:00:52]} e6 {[%emt 0:00:06]} 3. Nc3 {[%emt 0:01:14]} Be7 {[%emt 0:00:11]} 4. Nf3 {[%emt 0:01:19]} Nf6 {[%emt 0:00:15]} 5. e3 {[%emt 0:02:01]} O-O {[%emt 0:05:20]} 6. Bd2 {[%emt 0:03:16]} b6 {[%emt 0:07:16]} 7. Qc2 {[%emt 0:09:59]} Bb7 {[%emt 0:03:05]} 8. cxd5 {[%emt 0:03:42]} Nxd5 {[%emt 0:00:16]} 9. e4 {[%emt 0:01:47]} Nxc3 {[%emt 0:01:24]} 10. bxc3 {[%emt 0:01:46]} c5 {[%emt 0:02:37]} 11. Bd3 {[%emt 0:07:00]} Nd7 {[%emt 0:03:01]} 12. O-O {[%emt 0:01:59]} h6 {[%emt 0:12:42]} 13. Rfe1 {[%emt 0:02:13]} Rc8 {[%emt 0:13:43]} 14. c4 {[%emt 0:06:11]} cxd4 {[%emt 0:01:02]} 15. Nxd4 {[%emt 0:01:35]} Ne5 {[%emt 0:04:18]} 16. Qc3 {[%emt 0:03:36]} Nxd3 {[%emt 0:00:19]} 17. Qxd3 {[%emt 0:00:53]} e5 {[%emt 0:00:01]} 18. Be3 {[%emt 0:04:23]} exd4 {[%emt 0:00:22]} 19. Bxh6 {[%emt 0:04:27]} gxh6 {[%emt 0:05:17]} 20. Qg3+ {[%emt 0:01:36]} Kh8 {[%emt 0:00:02]} 21. f4 {[%emt 0:02:17]} Rg8 {[%emt 0:01:19]} 22. Qh3 {[%emt 0:01:09]} Qd6 {[%emt 0:00:10]} 23. e5 {[%emt 0:01:18]} Qg6 {[%emt 0:01:35]} 24. g4 {[%emt 0:00:55]} Qxg4+ {[%emt 0:00:29]} 25. Qxg4 {[%emt 0:00:49]} Rxg4+ {[%emt 0:00:03]} 26. Kf1 {[%emt 0:00:22]} Rxf4+ {[%emt 0:02:21]} 27. Ke2 {[%emt 0:00:39]} d3+ {[%emt 0:06:03]} 28. Kxd3 {[%emt 0:02:09]} Rfxc4 {[%emt 0:00:06]} 29. e6 {[%emt 0:02:21]} f6 {[%emt 0:00:45]} 30. Rg1 {[%emt 0:04:23]} Rc3+ {[%emt 0:01:20]} 31. Kd2 {[%emt 0:01:00]} Rc2+ {[%emt 0:00:09]} 32. Kd1 {[%emt 0:01:48]} Bf3+ {[%emt 0:00:43]} 33. Ke1 {[%emt 0:00:41]} Re2+ {[%emt 0:01:20]} 34. Kd1 {[%emt 0:02:13]} Rxa2+ {[%emt 0:00:14]} 35. Ke1 {[%emt 0:00:29]} Rxa1+ {[%emt 0:00:04]} 36. Kf2 {[%emt 0:00:25]} Bc5+ {[%emt 0:00:10]} 37. Kxf3 {[%emt 0:01:07]} Rxg1 {[%emt 0:00:07]} 38. h4 {[%emt 0:00:27]} Be7 {[%emt 0:00:10]} 39. h5 {[%emt 0:00:23]} Rc4 {[%emt 0:00:06]} 40. Ke2 {[%emt 0:00:41]} Rg3 {[%emt 0:00:04]} 41. Kd2 {[%emt 0:00:36]} Rh4 {[%emt 0:00:03]} 0-1